fUSD/lending_fUSD_20240531
["ID","MTS","AMOUNT","RATE_DAILY","PERIOD"]
[328313173,1717150232198,-4392.03843086,0.0001385,2]
[328313174,1717150232209,-4418.84317766,0.0001385,2]
[328313175,1717150232219,-150.0,0.00013899,2]
[328313177,1717150232228,-1665.40276423,0.000139,2]
[328313180,1717150232237,-4737.3976,0.000139,2]
[328313183,1717150232246,-309.37405224,0.00013979,2]
[328313189,1717150232518,-239.46323186,0.00013979,2]
[328313190,1717150232532,-61.37146361,0.00013987,2]
[328313191,1717150232544,-480.25383592,0.00013987,2]
[328313192,1717150232553,-1130.06705116,0.00013988,2]
[328313193,1717150232563,-302.80235908,0.00013988,2]
[328313194,1717150232573,-4079.7304343,0.00013989,2]
[328313195,1717150232584,-7643.34631954,0.00013989,2]
[328313196,1717150232597,-734.78836892,0.00013989,2]
[328313197,1717150232663,-3208.12405487,0.00013989,2]
[328313200,1717150232675,-966.43463374,0.00013989,2]
[328313238,1717150238285,-27177.99999998,0.00013989,2]
[328313239,1717150238297,-511.50612642,0.00013989,2]
[328313240,1717150238310,-14866.02806833,0.00013989,2]
[328313241,1717150238320,-2513.22656462,0.00013989,2]
[328313242,1717150238331,-2702.22081626,0.00013989,2]
[328313243,1717150238636,-622.88685889,0.00013989,2]
[328313248,1717150238676,-0.00080543,0.00013989,2]
[328313328,1717150241035,-3065.8115919,0.00013989,2]
[328313330,1717150241045,-1248.10825523,0.00013998,2]
[328313332,1717150241055,-1000.0,0.00013998,2]
[328313334,1717150241064,-428.37179358,0.00013998,2]
[328313336,1717150241073,-644.15206775,0.00013998,2]
[328313338,1717150241083,-428.74701672,0.00013998,2]
[328313340,1717150241092,-213.24002382,0.00013999,2]
[328313342,1717150241101,-174.91665441,0.00013999,2]
[328313351,1717150241176,-642.29216759,0.00013999,2]
[328313353,1717150241186,-269.43837581,0.00014,2]
[328313381,1717150241619,-8413.35640812,0.00014,2]
[328313382,1717150241635,-2830.4136575,0.00014,2]
[328313388,1717150243404,-758.90327053,0.00013999,2]
[328313389,1717150243414,-30768.31793099,0.00014,2]
[328313390,1717150243426,-444.24779552,0.00014,2]
[328313391,1717150243437,-13547.87947996,0.00014,2]
[328313392,1717150243448,-2796.50728471,0.00014,2]
[328313393,1717150243479,-3094.58131884,0.00014,2]
[328313394,1717150244079,-1192.57468525,0.00014,2]
[328313395,1717150244275,-1022.95756892,0.00014,2]
[328313396,1717150244287,-259.8,0.00014,2]
[328313397,1717150244298,-673.04770832,0.00014,2]
[328313403,1717150248486,-0.6211909,0.00013999,2]
[328313404,1717150248590,-437.13599584,0.00013999,2]
[328313405,1717150248602,-18130.97330376,0.00014,2]
[328313406,1717150248719,-4712.575,0.00014,2]
[328313407,1717150248734,-4587.62418501,0.00014,2]
[328313409,1717150248899,-3906.07538525,0.00014,2]
[328313411,1717150248914,-5511.88176,0.00014,2]
[328313413,1717150395554,202.60247071,0.00030137,30]
[328313414,1717151059776,2691.9921007,0.00035,90]
[328313415,1717151141745,254.9,0.00033151,120]
[328313416,1717151155123,-259.36043493,0.00013456,2]
[328313417,1717151155144,-1011.00108101,0.00013457,2]
[328313418,1717151157018,846.405175,0.00013388,2]
[328313419,1717151176776,3095.99132127,0.00013455,2]
[328313420,1717151181976,195.42331331,0.00013455,2]
[328313421,1717151182927,362.54770012,0.00013388,2]
[328313423,1717151195880,786.29,0.00010041,2]
[328313424,1717151196876,362.54770012,0.00013388,2]
[328313425,1717151218865,362.5758973,0.00013388,2]
[328313426,1717151312435,249.93,0.00012915,2]
[328313434,1717151432467,-791.11871029,0.00013741,2]
[328313435,1717151432477,-150.0,0.00013742,2]
[328313436,1717151432487,-196.75989189,0.00013743,2]
[328313437,1717151432496,-2644.00835833,0.00013743,2]
[328313438,1717151432507,-451.49262671,0.00013743,2]
[328313439,1717151432516,-271.65498901,0.00013743,2]
[328313440,1717151432526,-242.85847554,0.00013744,2]
[328313441,1717151432536,-843.48465278,0.00013744,2]
[328313442,1717151432546,-4176.75507449,0.00013745,2]
[328313443,1717151432558,-571.61940899,0.00013745,2]
[328313444,1717151432570,-909.67996557,0.00013745,2]
[328313445,1717151432582,-16827.66206442,0.00013745,2]
[328313446,1717151432761,-9369.34587387,0.00013816,2]
[328313447,1717151432771,-224.43965,0.0001386,2]
[328313448,1717151432781,-199.08712146,0.00013867,2]
[328313450,1717151432790,-185.14240049,0.00013887,2]
[328313453,1717151432802,-314.85759951,0.00013887,2]
[328313455,1717151432812,-200.0,0.00013887,2]
[328313457,1717151432822,-113.26589626,0.00013888,2]
[328313459,1717151432833,-386.73410374,0.00013888,2]
[328313460,1717151432842,-200.0,0.00013888,2]
[328313461,1717151432852,-1672.74565482,0.000139,2]
[328313462,1717151432863,-32.12854518,0.000139,2]
[328313463,1717151432873,-767.87145482,0.00013977,2]
[328313464,1717151432884,-7085.05170985,0.00013977,2]
[328313465,1717151432897,-1495.67074349,0.00013977,2]
[328313466,1717151432914,-1447.26470573,0.00013987,2]
[328313467,1717151432924,-297.23442839,0.00013987,2]
[328313468,1717151432933,-3772.45714157,0.00013987,2]
[328313469,1717151432943,-1898.32825842,0.00013987,2]
[328313470,1717151432955,-170.66220389,0.00013987,2]
[328313471,1717151432966,-361.1410083,0.00013987,2]
[328313472,1717151432975,-223.69513029,0.00013987,2]
[328313473,1717151432986,-155.92673845,0.00013987,2]
[328313474,1717151432995,-364.27737293,0.00013987,2]
[328313475,1717151433005,-848.89413655,0.00013987,2]
[328313476,1717151433014,-268.18956153,0.00013987,2]
[328313477,1717151433023,-723.13012267,0.00013987,2]
[328313478,1717151433032,-155.2374493,0.00013987,2]
[328313479,1717151433042,-166.48020015,0.00013987,2]
[328313480,1717151433051,-321.83343734,0.00013987,2]
[328313481,1717151433060,-1393.66146026,0.00013987,2]
[328313482,1717151433070,-2000.83899828,0.00013987,2]
[328313483,1717151433080,-155.31619025,0.00013987,2]
[328313484,1717151433090,-1497.14333897,0.00013987,2]
[328313485,1717151433099,-2815.28122404,0.00013987,2]
[328313486,1717151433109,-1465.62018346,0.00013988,2]
[328313487,1717151433118,-155.0,0.00013989,2]
[328313488,1717151433128,-6102.4603601,0.00013989,2]
[328313489,1717151433137,-20239.87326193,0.00013989,2]
[328313490,1717151433146,-723.0810215,0.00013989,2]
[328313491,1717151433155,-1086.5099825,0.00013989,2]
[328313492,1717151433165,-36209.4721502,0.00013989,2]
[328313493,1717151433175,-1373.4316208,0.00013989,2]
[328313494,1717151433184,-2360.1643269,0.00013989,2]
[328313495,1717151433194,-5964.6298066,0.00013989,2]
[328313496,1717151433203,-440.50804112,0.00013999,2]
[328313497,1717151433212,-7955.14685238,0.00014,2]
[328313498,1717151433222,-155.4697169,0.00014,2]
[328313499,1717151433231,-416.51,0.0001466,2]
[328313500,1717151433240,-234.66,0.00014878,2]
[328313501,1717151433250,-250.0,0.00014944,2]
[328313502,1717151433260,-487.0,0.00015,2]
[328313503,1717151433269,-415.03096427,0.00015,2]
[328313504,1717151433279,-210.0,0.00015116,2]
[328313505,1717151433288,-155.18,0.00015833,2]
[328313506,1717151433297,-155.18,0.00015951,2]
[328313507,1717151433307,-155.18,0.00016068,2]
[328313508,1717151433316,-604.6,0.00016167,2]
[328313509,1717151433326,-155.18,0.00016186,2]
[328313510,1717151433336,-167.86,0.00016189,2]
[328313511,1717151433345,-155.18,0.00016304,2]
[328313512,1717151433355,-224.43965,0.0001636,2]
[328313513,1717151433364,-155.18,0.00016422,2]
[328313514,1717151433374,-169.1,0.00016434,2]
[328313515,1717151433384,-23900.0,0.00016485,2]
[328313516,1717151433393,-155.18,0.0001654,2]
[328313517,1717151433403,-155.18,0.00016658,2]
[328313518,1717151433412,-250.0,0.00016731,2]
[328313519,1717151433423,-416.51,0.00016924,2]
[328313520,1717151433433,-153.04,0.00017248,2]
[328313521,1717151433444,-584.41,0.00017258,2]
[328313522,1717151433454,-722.45,0.00017287,2]
[328313523,1717151433463,-5745.0370925,0.00019,2]
[328313524,1717151433472,-151.0,0.00019,2]
[328313525,1717151433482,-151.0,0.00019,2]
[328313526,1717151433491,-151.0,0.00019,2]
[328313527,1717151433500,-151.0,0.00019,2]
[328313528,1717151433510,-416.51,0.00019188,2]
[328313529,1717151433519,-722.45,0.00019447,2]
[328313530,1717151433528,-584.41,0.00019998,2]
[328313531,1717151433538,-5195.22657685,0.0002,2]
[328313532,1717151433547,-158.77642645,0.0002,2]
[328313533,1717151433556,-150.0,0.0002,2]
[328313534,1717151433565,-150.0,0.000205,2]
[328313535,1717151433574,-150.0,0.00021,2]
[328313536,1717151433584,-416.51,0.00021452,2]
[328313537,1717151433593,-150.0,0.000215,3]
[328313538,1717151433602,-722.45,0.00021608,2]
[328313539,1717151433612,-7000.0,0.000219,2]
[328313540,1717151433621,-250.0,0.00021918,2]
[328313541,1717151433631,-254.9,0.00021918,2]
[328313542,1717151433640,-789.02916967,0.00022,2]
[328313543,1717151433650,-155.976245,0.00022,3]
[328313544,1717151433659,-584.41,0.00022737,2]
[328313545,1717151433667,-2083.66637491,0.00023,3]
[328313546,1717151433677,-34158.33857041,0.00023,2]
[328313547,1717151433687,-159.968093,0.00023,7]
[328313548,1717151433696,-151.0,0.00023,7]
[328313549,1717151433705,-151.0,0.00023,7]
[328313550,1717151433714,-416.51,0.00023716,2]
[328313551,1717151433724,-722.45,0.00023769,2]
[328313552,1717151433733,-183.14,0.00023881,2]
[328313553,1717151433742,-150.83760131,0.00024,2]
[328313554,1717151433751,-209.6326274,0.00024,2]
[328313555,1717151433761,-163.87,0.00024384,2]
[328313556,1717151433771,-157.43,0.00024384,2]
[328313557,1717151433780,-160.97,0.00024384,2]
[328313558,1717151433790,-154.53,0.00024384,2]
[328313559,1717151433799,-663.73,0.00024566,2]
[328313560,1717151433808,-663.73,0.00024572,2]
[328313561,1717151433817,-663.73,0.00024579,2]
[328313562,1717151433826,-663.73,0.00024585,2]
[328313563,1717151433835,-663.73,0.00024592,2]
[328313564,1717151433844,-663.73,0.00024598,2]
[328313565,1717151433854,-663.73,0.00024604,2]
[328313566,1717151433863,-663.73,0.00024611,2]
[328313567,1717151433872,-663.73,0.00024617,2]
[328313568,1717151433881,-663.73,0.00024624,2]
[328313569,1717151433890,-663.73,0.0002463,2]
[328313570,1717151433902,-663.73,0.00024637,2]
[328313571,1717151433913,-663.73,0.00024643,2]
[328313572,1717151433922,-663.73,0.0002465,2]
[328313573,1717151433931,-663.73,0.00024656,2]
[328313574,1717151433942,-663.73,0.00024663,2]
[328313575,1717151433952,-663.73,0.00024669,2]
[328313576,1717151433961,-663.73,0.00024676,2]
[328313577,1717151433970,-663.73,0.00024682,2]
[328313578,1717151433981,-663.73,0.00024689,2]
[328313579,1717151433992,-287.2428826,0.00024799,2]
[328313580,1717151434001,-287.24288253,0.00024799,2]
[328313581,1717151434010,-287.24288253,0.00024799,2]
[328313582,1717151434020,-287.24288253,0.00024799,2]
[328313583,1717151434029,-287.24288253,0.00024799,2]
[328313584,1717151434038,-287.24288253,0.00024799,2]
[328313585,1717151434048,-928.77309602,0.000249,2]
[328313586,1717151434057,-2612.14773371,0.00025,2]
[328313587,1717151434067,-1050.0,0.00025,2]
[328313588,1717151434076,-239.87024777,0.00025,2]
[328313589,1717151434086,-174.4,0.00025633,2]
[328313590,1717151434095,-722.45,0.0002593,2]
[328313591,1717151434104,-416.51,0.0002598,2]
[328313592,1717151434113,-928.77309598,0.00026086,2]
[328313593,1717151434123,-287.24288253,0.00026767,2]
[328313594,1717151434132,-500.0,0.00026853,2]
[328313595,1717151434141,-500.0,0.00026853,2]
[328313596,1717151434150,-928.77309598,0.00027271,2]
[328313597,1717151434159,-1019.0,0.00028,7]
[328313598,1717151434168,-416.51,0.00028243,2]
[328313599,1717151434177,-928.77309598,0.00028457,2]
[328313600,1717151434187,-287.24288253,0.00028911,2]
[328313601,1717151434197,-1201.5772833,0.00029,2]
[328313602,1717151434212,-283.90067881,0.00029,2]
[328313603,1717151434222,-1000.0,0.00029,7]
[328313604,1717151434231,-500.0,0.0002903,2]
[328313605,1717151434240,-2508.59892,0.000291,2]
[328313606,1717151434249,-10516.92407191,0.0002913,10]
[328313607,1717151434258,-151.0,0.0002913,7]
[328313608,1717151434268,-156.054307,0.0002913,7]
[328313609,1717151434277,-1500.0,0.000296,2]
[328313610,1717151434286,-928.77309598,0.00029643,2]
[328313611,1717151434295,-334.0,0.00029775,5]
[328313612,1717151434304,-198.51020458,0.00029775,2]
[328313613,1717151434313,-150.0,0.00029784,2]
[328313614,1717151434323,-150.0,0.0002979,2]
[328313615,1717151434332,-150.0,0.0002979,2]
[328313616,1717151434341,-150.0,0.00029793,2]
[328313617,1717151434350,-150.0,0.00029794,2]
[328313618,1717151434360,-150.0,0.00029795,2]
[328313619,1717151434369,-150.0,0.00029802,2]
[328313620,1717151434378,-150.0,0.00029808,2]
[328313621,1717151434387,-150.0,0.00029809,2]
[328313622,1717151434396,-150.0,0.00029811,2]
[328313623,1717151434405,-150.0,0.00029812,2]
[328313624,1717151434414,-150.0,0.00029814,2]
[328313625,1717151434423,-150.0,0.00029815,2]
[328313626,1717151434432,-150.0,0.00029817,2]
[328313627,1717151434443,-150.0,0.00029819,2]
[328313628,1717151434452,-150.0,0.0002982,2]
[328313629,1717151434461,-150.0,0.00029824,2]
[328313630,1717151434470,-150.0,0.00029825,2]
[328313631,1717151434480,-150.0,0.00029833,2]
[328313632,1717151434489,-150.0,0.00029835,2]
[328313633,1717151434498,-150.0,0.00029837,2]
[328313634,1717151434507,-150.0,0.00029851,2]
[328313635,1717151434516,-152.94836458,0.00029852,2]
[328313636,1717151434525,-150.0,0.00029853,2]
[328313637,1717151434534,-150.0,0.00029856,2]
[328313638,1717151434543,-150.0,0.0002986,2]
[328313639,1717151434552,-150.0,0.0002987,2]
[328313640,1717151434561,-150.0,0.00029872,2]
[328313641,1717151434571,-150.0,0.00029876,2]
[328313642,1717151434580,-150.0,0.00029881,2]
[328313643,1717151434589,-150.0,0.00029882,2]
[328313644,1717151434598,-150.0,0.00029886,2]
[328313645,1717151434607,-150.0,0.00029888,2]
[328313646,1717151434616,-150.0,0.0002989,2]
[328313647,1717151434624,-150.0,0.00029899,2]
[328313648,1717151434633,-1522.05576886,0.00029901,2]
[328313649,1717151434641,-1500.0,0.00029913,2]
[328313650,1717151434650,-300.0,0.00029918,2]
[328313651,1717151434659,-150.0,0.0002992,2]
[328313652,1717151434668,-150.0,0.00029922,2]
[328313653,1717151434678,-300.0,0.00029924,2]
[328313654,1717151434687,-150.0,0.00029924,2]
[328313655,1717151434697,-150.0,0.00029925,2]
[328313656,1717151434706,-150.0,0.00029929,2]
[328313657,1717151434717,-1500.0,0.00029929,2]
[328313658,1717151434729,-150.0,0.00029932,2]
[328313659,1717151434738,-150.0,0.00029933,2]
[328313660,1717151434747,-150.0,0.00029935,2]
[328313661,1717151434756,-150.0,0.00029935,2]
[328313662,1717151434765,-300.0,0.00029936,2]
[328313663,1717151434775,-150.0,0.00029937,2]
[328313664,1717151434784,-150.0,0.00029941,2]
[328313665,1717151434793,-150.0,0.00029945,2]
[328313666,1717151434803,-150.0,0.00029948,2]
[328313667,1717151434812,-150.0,0.0002995,2]
[328313668,1717151434821,-150.0,0.00029952,2]
[328313669,1717151434830,-150.0,0.00029959,2]
[328313670,1717151434840,-150.0,0.00029967,2]
[328313671,1717151434848,-150.0,0.00029967,2]
[328313672,1717151434857,-150.0,0.00029974,2]
[328313673,1717151434867,-150.0,0.00029975,2]
[328313674,1717151434876,-150.0,0.00029983,2]
[328313675,1717151434886,-150.0,0.00029992,2]
[328313676,1717151434895,-150.0,0.00029997,2]
[328313677,1717151434907,-150.0,0.00029999,2]
[328313678,1717151434916,-155.0,0.0003,4]
[328313679,1717151434926,-5699.77274789,0.0003,2]
[328313680,1717151434936,-13684.286357,0.0003,4]
[328313681,1717151434947,-266.30735074,0.0003,4]
[328313682,1717151434956,-150.0,0.00030008,2]
[328313683,1717151434965,-150.0,0.00030013,2]
[328313684,1717151434974,-150.0,0.00030013,2]
[328313685,1717151434986,-150.0,0.00030016,2]
[328313686,1717151434995,-150.0,0.00030017,2]
[328313687,1717151435004,-150.0,0.00030019,2]
[328313688,1717151435014,-300.0,0.00030024,2]
[328313689,1717151435023,-150.0,0.00030031,2]
[328313690,1717151435032,-151.40455249,0.00030032,2]
[328313691,1717151435041,-234.83029092,0.00030037,2]
[328313692,1717151435051,-150.0,0.00030041,2]
[328313693,1717151435060,-150.0,0.00030041,2]
[328313694,1717151435069,-150.0,0.00030042,2]
[328313695,1717151435079,-150.0,0.00030043,2]
[328313696,1717151435088,-150.0,0.00030046,2]
[328313697,1717151435097,-300.3202644,0.00030052,2]
[328313698,1717151435107,-150.0,0.00030056,2]
[328313699,1717151435117,-1500.0,0.00030065,2]
[328313700,1717151435126,-150.0,0.00030065,2]
[328313701,1717151435135,-150.0,0.00030065,2]
[328313702,1717151435144,-300.0,0.0003008,2]
[328313703,1717151435154,-150.0,0.0003008,2]
[328313704,1717151435163,-150.0,0.00030084,2]
[328313705,1717151435172,-300.0,0.00030084,2]
[328313706,1717151435181,-150.0,0.00030088,2]
[328313707,1717151435192,-150.0,0.00030094,2]
[328313708,1717151435201,-1500.0,0.000301,2]
[328313709,1717151435210,-150.0,0.00030101,2]
[328313710,1717151435220,-150.0,0.00030108,2]
[328313711,1717151435229,-150.0,0.00030111,2]
[328313712,1717151435238,-150.0,0.00030113,2]
[328313713,1717151435248,-188.47964542,0.00030127,2]
[328313714,1717151435257,-191.0,0.0003032,19]
[328313715,1717151435266,-150.0,0.00030462,2]
[328313716,1717151435275,-284.32416,0.00030462,7]
[328313717,1717151435284,-416.51,0.00030507,2]
[328313718,1717151435294,-150.0,0.00030537,2]
[328313719,1717151435303,-722.0,0.000306,4]
[328313720,1717151435313,-709.0,0.000306,2]
[328313721,1717151435322,-1000.0,0.000306,2]
[328313722,1717151435331,-448.0,0.000306,2]
[328313723,1717151435340,-154.53,0.00030639,2]
[328313724,1717151435349,-150.0,0.0003065,2]
[328313725,1717151435358,-3540.0,0.000307,4]
[328313726,1717151435367,-234.8302909,0.00030722,2]
[328313727,1717151435377,-252.541728,0.000308,3]
[328313728,1717151435386,-150.0,0.00030804,2]
[328313729,1717151435395,-928.77309598,0.00030829,2]
[328313730,1717151435404,-150.0,0.00030855,2]
[328313731,1717151435413,-155.52371919,0.00031,7]
[328313732,1717151435543,-1124.30415624,0.00031054,10]
[328313733,1717151435553,-287.24288253,0.00031056,10]
[328313734,1717151435562,-168.59850175,0.00031326,7]
[328313735,1717151435571,-300.0,0.00031391,2]
[328313736,1717151435580,-234.8302909,0.00031407,2]
[328313737,1717151435590,-150.0,0.00031416,2]
[328313738,1717151435600,-4200.0,0.000316,11]
[328313739,1717151435609,-155.71509557,0.0003165,7]
[328313740,1717151435619,-1999.99999999,0.0003168,7]
[328313741,1717151435629,-152.56637886,0.00031681,7]
[328313742,1717151435638,-150.0,0.00031694,2]
[328313743,1717151435647,-594.34728856,0.000317,3]
[328313744,1717151435657,-8400.0,0.000317,11]
[328313745,1717151435666,-646.92824993,0.000317,4]
[328313746,1717151435675,-213.1491618,0.00031738,7]
[328313747,1717151435684,-457.0,0.0003177,15]
[328313748,1717151435693,-325.0,0.0003177,15]
[328313749,1717151435702,-154.62185471,0.00031775,7]
[328313750,1717151435711,-457.0,0.0003178,15]
[328313751,1717151435720,-325.0,0.0003178,15]
[328313752,1717151435729,-150.0,0.00031785,2]
[328313753,1717151435738,-457.0,0.0003179,15]
[328313754,1717151435748,-325.0,0.0003179,15]
[328313755,1717151435757,-224.07,0.0003179,15]
[328313756,1717151435766,-271.15,0.0003179,2]
[328313757,1717151435775,-1996.78374351,0.00031797,2]
[328313758,1717151435784,-344.98695311,0.00031798,4]
[328313759,1717151435793,-38467.14611719,0.00031798,30]
[328313760,1717151435802,-10000.051992,0.00031799,3]
[328313761,1717151435811,-8539.83011421,0.00031799,2]
[328313762,1717151435912,-563.456,0.00031799,2]
[328313763,1717151435923,-521.36640746,0.00031799,2]
[328313764,1717151435934,-1324.76351156,0.00031799,2]
[328313765,1717151435947,-1452.08314633,0.00031799,2]
[328313766,1717151435969,-34609.499745,0.00031799,2]
[328313767,1717151435984,-582.92504737,0.00031799,2]
[328313793,1717151438482,-220.25402056,0.00013999,2]
[328313794,1717151438491,-273.49197944,0.00031799,2]
[328313838,1717151441944,-290.74,0.00031799,2]
[328313847,1717151442114,-299.65043882,0.00031799,2]
[328313848,1717151442127,-715.7408201,0.00031799,2]
[328313852,1717151442725,-220.25402056,0.00031798,2]
[328313853,1717151442735,-461.55597944,0.00031799,2]
[328313854,1717151442857,-7569.50879983,0.00031799,2]
[328313855,1717151442869,-5022.6166701,0.00031799,2]
[328313887,1717151443816,-2124.08585269,0.00031799,2]
[328313888,1717151443828,-5142.27381666,0.00031799,2]
[328313889,1717151443839,-4051.862726,0.00031799,2]
[328313890,1717151443854,-839.33506367,0.00031799,2]
[328313891,1717151443865,-3298.80021603,0.00031799,2]
[328313892,1717151444221,-637.11364929,0.00031798,4]
[328313893,1717151444232,-3152.85366529,0.00031799,2]
[328313894,1717151444242,-299.0,0.000318,5]
[328313895,1717151444253,-12590.17809087,0.000318,2]
[328313972,1717151646321,14955.07088062,0.000118,2]
[328313973,1717151700296,10058.15517088,0.0003,120]
[328313994,1717151949260,1662.32715,0.0001341,2]
[328313995,1717152010884,155.0,0.0001341,2]
[328313996,1717152011627,20244.72603148,0.0001341,2]
[328313997,1717152016073,19753.46871314,0.0001341,2]
[328313998,1717152016412,169245.69611764,0.0001341,2]
[328313999,1717152245275,1466.86,0.00035,90]
[328314001,1717152355177,-429.06448337,0.00013106,2]
[328314002,1717152355200,-168.29785277,0.00013107,2]
[328314003,1717152355222,-162.97578809,0.00013206,2]
[328314004,1717152355243,-168.29785277,0.0001331,2]
[328314005,1717152355263,-731.85981427,0.0001341,2]
[328314006,1717152445433,3500.0,0.000138,5]
[328314007,1717152447531,5231.38726525,0.000139,5]
[328314011,1717152631741,-512.05372505,0.00013342,2]
[328314018,1717152631927,-102.87322295,0.00013342,2]
[328314019,1717152631936,-204.96017705,0.00013409,2]
[328314045,1717152637620,-14.03982295,0.00013409,2]
[328314047,1717152637629,-150.0,0.00013409,2]
[328314048,1717152637639,-3028.17100871,0.0001341,2]
[328314049,1717152637772,-1169.9717117,0.0001341,2]
[328314050,1717152637782,-232.19327403,0.000138,2]
[328314051,1717152637792,-1823.35616736,0.00013828,2]
[328314052,1717152637801,-4562.21129181,0.00013899,2]
[328314053,1717152637810,-7692.0431,0.000139,2]
[328314054,1717152637820,-1868.61273475,0.000139,5]
[328314055,1717152637830,-24767.1250601,0.000139,2]
[328314056,1717152637935,-1581.63791715,0.000139,2]
[328314057,1717152637947,-2374.95090152,0.000139,2]
[328314058,1717152638120,-2640.22,0.000139,2]
[328314059,1717152638131,-51839.01519606,0.000139,2]
[328314060,1717152638143,-3569.29842984,0.000139,2]
[328314061,1717152640663,-1340.75899998,0.000139,2]
[328314063,1717152640675,-761.89799612,0.000139,2]
[328314096,1717152643786,-4077.4858297,0.000139,2]
[328314097,1717152644017,-1672.66916409,0.000139,2]
[328314145,1717152646510,-453620.9369053,0.000139,2]
[328314146,1717152646519,-20244.72603148,0.000139,2]
[328314147,1717152646529,-959015.83316628,0.00014,2]
[328314148,1717152646539,-7019.6734,0.00016385,2]
[328314149,1717152646549,-232.19327399,0.00016571,2]
[328314150,1717152646559,-6918.0896,0.000189,2]
[328314151,1717152646568,-232.19327399,0.00019343,2]
[328314152,1717152646578,-155.0,0.0002,2]
[328314153,1717152646588,-359.279,0.00020549,2]
[328314154,1717152646598,-10551.166,0.00020549,2]
[328314155,1717152646608,-289.0,0.00020549,2]
[328314156,1717152646618,-5140.0,0.00020549,2]
[328314157,1717152646628,-1110.281,0.00020549,2]
[328314158,1717152646637,-4362.77170047,0.00020992,2]
[328314159,1717152646647,-544.81834781,0.000217,2]
[328314160,1717152646657,-500.0,0.000218,2]
[328314161,1717152646667,-232.19327399,0.00022114,2]
[328314162,1717152646676,-544.8183478,0.00022745,2]
[328314163,1717152646686,-544.8183478,0.00023791,2]
[328314164,1717152646695,-999.88920134,0.00024,3]
[328314165,1717152646704,-163.87,0.00024384,2]
[328314166,1717152646713,-157.43,0.00024384,2]
[328314167,1717152646722,-1011.87374068,0.00024798,2]
[328314168,1717152646732,-1011.87374061,0.00024798,2]
[328314169,1717152646742,-1011.87374061,0.00024798,2]
[328314170,1717152646751,-1011.87374061,0.00024798,2]
[328314171,1717152646760,-1011.87374061,0.00024798,2]
[328314172,1717152646769,-1011.87374061,0.00024798,2]
[328314173,1717152646778,-287.24288253,0.00024799,2]
[328314174,1717152646788,-544.8183478,0.00024836,2]
[328314175,1717152646797,-232.19327399,0.00024886,2]
[328314176,1717152646807,-249.9,0.00025082,2]
[328314177,1717152646816,-544.8183478,0.00025882,2]
[328314178,1717152646825,-169.93,0.00026505,2]
[328314179,1717152646834,-1011.87374061,0.00026733,2]
[328314180,1717152646843,-1150.99,0.00026772,2]
[328314181,1717152646853,-544.8183478,0.00026927,2]
[328314182,1717152646862,-250.0,0.00027289,2]
[328314183,1717152646871,-249.9,0.00027346,2]
[328314184,1717152646880,-232.19327399,0.00027657,2]
[328314185,1717152646890,-544.8183478,0.00027973,2]
[328314186,1717152646899,-1011.87374061,0.00028889,2]
[328314187,1717152646908,-544.8183478,0.00029018,2]
[328314188,1717152646918,-249.9,0.0002961,2]
[328314189,1717152646927,-150.0,0.00029908,2]
[328314190,1717152646936,-155.0,0.0003,4]
[328314191,1717152646945,-544.8183478,0.00030064,2]
[328314192,1717152646954,-1000.0,0.000301,7]
[328314193,1717152646963,-232.19327399,0.00030429,2]
[328314194,1717152646973,-1000.0,0.000305,4]
[328314195,1717152646983,-1000.0,0.000308,2]
[328314196,1717152646992,-1000.0,0.0003095,4]